fUSD/lending_fUSD_20250414
["ID","MTS","AMOUNT","RATE_DAILY","PERIOD"]
[358010075,1744653056318,-500.0,0.00017886,2]
[358010076,1744653056328,-500.0,0.00017886,2]
[358010077,1744653056338,-500.0,0.00017886,2]
[358010078,1744653056348,-500.0,0.00017886,2]
[358010079,1744653056358,-500.0,0.00017886,2]
[358010080,1744653056367,-500.0,0.00017886,2]
[358010081,1744653056377,-3347.06,0.00017886,2]
[358010082,1744653056388,-3347.06,0.00017886,2]
[358010083,1744653056398,-500.0,0.00017886,2]
[358010084,1744653056408,-557.25,0.00017886,2]
[358010085,1744653056417,-557.25,0.00017886,2]
[358010086,1744653056427,-557.25,0.00017886,2]
[358010087,1744653056436,-1815.0,0.00017887,2]
[358010088,1744653056446,-500.0,0.00017887,2]
[358010089,1744653056455,-500.0,0.00017887,2]
[358010090,1744653056465,-614.13120668,0.00017887,2]
[358010091,1744653056474,-500.0,0.00017887,2]
[358010092,1744653056483,-515.35735234,0.00017887,2]
[358010093,1744653056493,-500.0,0.00017887,2]
[358010094,1744653056502,-213.77495,0.00017887,2]
[358010095,1744653056512,-500.0,0.00017887,2]
[358010096,1744653056521,-500.0,0.00017887,2]
[358010097,1744653056532,-500.0,0.00017887,2]
[358010098,1744653056541,-500.0,0.00017887,2]
[358010099,1744653056550,-500.0,0.00017887,2]
[358010100,1744653056560,-500.0,0.00017887,2]
[358010101,1744653056569,-500.0,0.00017887,2]
[358010102,1744653056579,-500.0,0.00017887,2]
[358010103,1744653056589,-500.0,0.00017887,2]
[358010104,1744653056598,-176.176175,0.00017887,2]
[358010105,1744653056608,-920.63,0.00017887,2]
[358010106,1744653056618,-920.63,0.00017887,2]
[358010107,1744653056627,-920.63,0.00017887,2]
[358010108,1744653056638,-920.63,0.00017887,2]
[358010109,1744653056649,-704.57,0.00017887,2]
[358010110,1744653056659,-704.57,0.00017887,2]
[358010111,1744653056668,-704.57,0.00017887,2]
[358010112,1744653056678,-704.57,0.00017887,2]
[358010113,1744653056688,-151.0,0.00017887,2]
[358010114,1744653056698,-151.0,0.00017887,2]
[358010115,1744653056708,-151.0,0.00017887,2]
[358010116,1744653056718,-151.0,0.00017887,2]
[358010117,1744653056727,-151.0,0.00017887,2]
[358010118,1744653056737,-151.0,0.00017887,2]
[358010119,1744653056746,-151.0,0.00017887,2]
[358010120,1744653056755,-151.0,0.00017887,2]
[358010121,1744653056765,-151.0,0.00017887,2]
[358010122,1744653056775,-186.289846,0.00017887,2]
[358010123,1744653056784,-171.452403,0.00017887,2]
[358010124,1744653056794,-186.289846,0.00017887,2]
[358010125,1744653056806,-165.743122,0.00017887,2]
[358010126,1744653056816,-500.0,0.00017887,2]
[358010127,1744653056826,-500.0,0.00017887,2]
[358010128,1744653056835,-500.0,0.00017887,2]
[358010129,1744653056847,-500.0,0.00017887,2]
[358010130,1744653056857,-500.0,0.00017887,2]
[358010131,1744653056867,-500.0,0.00017887,2]
[358010132,1744653056878,-555.57648203,0.00017887,2]
[358010133,1744653056889,-151.0,0.00017887,2]
[358010134,1744653056896,-151.0,0.00017887,2]
[358010135,1744653056902,-500.0,0.00017887,2]
[358010136,1744653056909,-151.0,0.00017887,2]
[358010137,1744653056919,-151.0,0.00017887,2]
[358010138,1744653056930,-158.021031,0.00017887,2]
[358010139,1744653056939,-152.968052,0.00017887,2]
[358010140,1744653056949,-151.0,0.00017887,2]
[358010141,1744653056959,-151.0,0.00017887,2]
[358010142,1744653056969,-502.21546187,0.00017887,2]
[358010143,1744653056979,-500.0,0.00017887,2]
[358010144,1744653056989,-500.0,0.00017887,2]
[358010145,1744653056999,-500.0,0.00017887,2]
[358010146,1744653057008,-500.0,0.00017887,2]
[358010147,1744653057017,-177.416713,0.00017887,2]
[358010148,1744653057027,-177.416713,0.00017887,2]
[358010149,1744653057037,-177.416713,0.00017887,2]
[358010150,1744653057047,-177.416713,0.00017887,2]
[358010151,1744653057056,-500.0,0.00017887,2]
[358010152,1744653057066,-151.0,0.00017887,2]
[358010153,1744653057076,-151.0,0.00017887,2]
[358010154,1744653057090,-151.0,0.00017887,2]
[358010155,1744653057100,-151.0,0.00017887,2]
[358010156,1744653057110,-164.039885,0.00017887,2]
[358010157,1744653057119,-151.0,0.00017887,2]
[358010158,1744653057130,-151.0,0.00017887,2]
[358010159,1744653057140,-151.0,0.00017887,2]
[358010160,1744653057150,-153.346241,0.00017887,2]
[358010161,1744653057160,-151.0,0.00017887,2]
[358010162,1744653057169,-152.272231,0.00017887,2]
[358010163,1744653057179,-151.0,0.00017887,2]
[358010164,1744653057189,-151.0,0.00017887,2]
[358010165,1744653057198,-284.743014,0.00017887,2]
[358010166,1744653057208,-151.0,0.00017887,2]
[358010167,1744653057218,-153.187474,0.00017887,2]
[358010168,1744653057228,-603.64814712,0.00017887,2]
[358010169,1744653057237,-248.694085,0.00017887,2]
[358010170,1744653057247,-500.0,0.00017887,2]
[358010171,1744653057256,-500.0,0.00017887,2]
[358010172,1744653057266,-151.0,0.00017887,2]
[358010173,1744653057275,-151.0,0.00017887,2]
[358010174,1744653057285,-500.0,0.00017887,2]
[358010175,1744653057295,-500.0,0.00017887,2]
[358010176,1744653057305,-251.022528,0.00017887,2]
[358010177,1744653057315,-251.022528,0.00017887,2]
[358010178,1744653057325,-500.0,0.00017887,2]
[358010179,1744653057335,-500.0,0.00017887,2]
[358010180,1744653057344,-500.0,0.00017887,2]
[358010181,1744653057353,-500.0,0.00017887,2]
[358010182,1744653057363,-636.56,0.00017887,2]
[358010183,1744653057372,-500.0,0.00017887,2]
[358010184,1744653057381,-500.0,0.00017887,2]
[358010185,1744653057392,-500.0,0.00017887,2]
[358010186,1744653057401,-500.0,0.00017887,2]
[358010187,1744653057411,-500.0,0.00017887,2]
[358010188,1744653057422,-500.0,0.00017887,2]
[358010189,1744653057432,-500.0,0.00017887,2]
[358010190,1744653057442,-500.0,0.00017887,2]
[358010191,1744653057451,-1190.39487,0.00017887,2]
[358010192,1744653057461,-1190.39487,0.00017887,2]
[358010193,1744653057471,-500.0,0.00017887,2]
[358010194,1744653057481,-500.0,0.00017887,2]
[358010195,1744653057491,-151.0,0.00017887,2]
[358010196,1744653057501,-500.0,0.00017887,2]
[358010197,1744653057511,-500.0,0.00017887,2]
[358010198,1744653057521,-500.0,0.00017887,2]
[358010199,1744653057531,-500.0,0.00017887,2]
[358010200,1744653057541,-500.0,0.00017887,2]
[358010201,1744653057551,-404.94955938,0.00017887,2]
[358010202,1744653057560,-500.0,0.00017887,2]
[358010203,1744653057571,-500.0,0.00017887,2]
[358010204,1744653057581,-500.0,0.00017887,2]
[358010205,1744653057591,-500.0,0.00017887,2]
[358010206,1744653057601,-500.0,0.00017887,2]
[358010207,1744653057611,-500.0,0.00017887,2]
[358010208,1744653057622,-500.0,0.00017887,2]
[358010209,1744653057631,-500.0,0.00017887,2]
[358010210,1744653057642,-500.0,0.00017887,2]
[358010211,1744653057652,-500.0,0.00017887,2]
[358010212,1744653057662,-500.0,0.00017887,2]
[358010213,1744653057672,-500.0,0.00017887,2]
[358010214,1744653057683,-500.0,0.00017887,2]
[358010215,1744653057693,-500.0,0.00017887,2]
[358010216,1744653057703,-264.18700278,0.00017887,2]
[358010217,1744653057714,-500.0,0.00017887,2]
[358010218,1744653057724,-500.0,0.00017887,2]
[358010219,1744653057734,-500.0,0.00017887,2]
[358010220,1744653057745,-500.0,0.00017887,2]
[358010221,1744653057755,-500.0,0.00017887,2]
[358010222,1744653057768,-500.0,0.00017887,2]
[358010223,1744653057779,-500.0,0.00017887,2]
[358010224,1744653057790,-156.081366,0.00017887,2]
[358010225,1744653057804,-500.0,0.00017887,2]
[358010226,1744653057814,-500.0,0.00017887,2]
[358010227,1744653057825,-500.0,0.00017887,2]
[358010228,1744653057834,-500.0,0.00017887,2]
[358010229,1744653057846,-500.0,0.00017887,2]
[358010230,1744653057856,-500.0,0.00017887,2]
[358010231,1744653057866,-500.0,0.00017887,2]
[358010232,1744653057878,-500.0,0.00017887,2]
[358010233,1744653057888,-666.17,0.00017887,2]
[358010234,1744653057897,-666.17,0.00017887,2]
[358010235,1744653057908,-1455.09,0.00017887,2]
[358010236,1744653057919,-500.0,0.00017887,2]
[358010237,1744653057930,-589.45794638,0.00017887,2]
[358010238,1744653057940,-561.88,0.00017887,2]
[358010239,1744653057951,-561.88,0.00017887,2]
[358010240,1744653057961,-561.88,0.00017887,2]
[358010241,1744653057971,-500.0,0.00017887,2]
[358010242,1744653057981,-500.0,0.00017887,2]
[358010243,1744653057991,-500.0,0.00017887,2]
[358010244,1744653058001,-500.0,0.00017887,2]
[358010245,1744653058012,-500.0,0.00017887,2]
[358010246,1744653058022,-235.33,0.00017887,2]
[358010247,1744653058032,-500.0,0.00017887,2]
[358010248,1744653058042,-500.0,0.00017887,2]
[358010249,1744653058052,-500.0,0.00017887,2]
[358010250,1744653058063,-227.93,0.00017887,2]
[358010251,1744653058073,-151.0,0.00017887,2]
[358010252,1744653058083,-500.0,0.00017887,2]
[358010253,1744653058094,-500.0,0.00017887,2]
[358010254,1744653058104,-151.0,0.00017887,2]
[358010255,1744653058114,-500.0,0.00017887,2]
[358010256,1744653058124,-156.02,0.00017887,2]
[358010257,1744653058136,-721.12,0.00017887,2]
[358010258,1744653058146,-721.12,0.00017887,2]
[358010259,1744653058156,-500.0,0.00017887,2]
[358010260,1744653058167,-500.0,0.00017887,2]
[358010261,1744653058178,-500.0,0.00017887,2]
[358010262,1744653058188,-721.12,0.00017887,2]
[358010263,1744653058198,-500.0,0.00017887,2]
[358010264,1744653058209,-500.0,0.00017887,2]
[358010265,1744653058220,-500.0,0.00017887,2]
[358010266,1744653058230,-500.0,0.00017887,2]
[358010267,1744653058241,-500.0,0.00017887,2]
[358010268,1744653058251,-500.0,0.00017887,2]
[358010269,1744653058262,-500.0,0.00017887,2]
[358010270,1744653058273,-317.63,0.00017887,2]
[358010271,1744653058283,-223.45101,0.00017887,2]
[358010272,1744653058292,-500.0,0.00017887,2]
[358010273,1744653058302,-500.0,0.00017887,2]
[358010274,1744653058311,-223.45101,0.00017887,2]
[358010275,1744653058321,-500.0,0.00017887,2]
[358010276,1744653058331,-488.44087036,0.00017887,2]
[358010277,1744653058341,-500.0,0.00017887,2]
[358010278,1744653058350,-500.0,0.00017887,2]
[358010279,1744653058360,-500.0,0.00017887,2]
[358010280,1744653058371,-500.0,0.00017887,2]
[358010281,1744653058380,-172.7294398,0.00017887,2]
[358010282,1744653058394,-500.0,0.00017887,2]
[358010283,1744653058404,-500.0,0.00017887,2]
[358010284,1744653058414,-500.0,0.00017887,2]
[358010285,1744653058425,-500.0,0.00017887,2]
[358010286,1744653058435,-500.0,0.00017887,2]
[358010287,1744653058445,-367.547228,0.00017887,2]
[358010288,1744653058455,-500.0,0.00017887,2]
[358010289,1744653058465,-367.547228,0.00017887,2]
[358010290,1744653058475,-248.61643703,0.00017887,2]
[358010291,1744653058485,-500.0,0.00017887,2]
[358010292,1744653058496,-500.0,0.00017887,2]
[358010293,1744653058506,-292.55561021,0.00017887,2]
[358010294,1744653058516,-439.23,0.00017887,2]
[358010295,1744653058526,-152.449968,0.00017888,2]
[358010296,1744653058536,-494.98204,0.00017888,2]
[358010297,1744653058546,-500.0,0.00017888,2]
[358010298,1744653058558,-500.0,0.00017888,2]
[358010299,1744653058568,-500.0,0.00017888,2]
[358010300,1744653058578,-920.63,0.00017888,2]
[358010301,1744653058588,-920.63,0.00017888,2]
[358010302,1744653058599,-920.63,0.00017888,2]
[358010303,1744653058610,-704.57,0.00017888,2]
[358010304,1744653058620,-704.57,0.00017888,2]
[358010305,1744653058630,-704.57,0.00017888,2]
[358010306,1744653058641,-500.0,0.00017888,2]
[358010307,1744653058651,-579.15,0.00017888,2]
[358010308,1744653058662,-500.0,0.00017888,2]
[358010309,1744653058672,-500.0,0.00017888,2]
[358010310,1744653058681,-500.0,0.00017888,2]
[358010311,1744653058691,-549.56338323,0.00017888,2]
[358010312,1744653058701,-251.022528,0.00017888,2]
[358010313,1744653058711,-251.022528,0.00017888,2]
[358010314,1744653058721,-1190.39487,0.00017888,2]
[358010315,1744653058731,-1190.39487,0.00017888,2]
[358010316,1744653058742,-1030.307129,0.00017888,2]
[358010317,1744653058752,-1030.307129,0.00017888,2]
[358010318,1744653058762,-243.59103,0.00017888,2]
[358010319,1744653058772,-243.59103,0.00017888,2]
[358010320,1744653058783,-472.81222735,0.00017889,2]
[358010321,1744653058794,-920.63,0.00017889,2]
[358010322,1744653058807,-704.57,0.00017889,2]
[358010323,1744653058817,-500.0,0.00017889,2]
[358010324,1744653058827,-500.0,0.00017889,2]
[358010325,1744653058839,-500.0,0.00017889,2]
[358010326,1744653058850,-500.0,0.00017889,2]
[358010327,1744653058863,-500.0,0.00017889,2]
[358010328,1744653058873,-711.27225373,0.00017889,2]
[358010329,1744653058885,-500.0,0.00017889,2]
[358010330,1744653058895,-2200.66,0.00017889,2]
[358010331,1744653058906,-500.0,0.00017889,2]
[358010332,1744653058916,-500.0,0.00017889,2]
[358010333,1744653058927,-508.19,0.00017889,2]
[358010334,1744653058937,-615.32,0.00017889,2]
[358010335,1744653058948,-500.0,0.00017889,2]
[358010336,1744653058958,-500.0,0.00017889,2]
[358010337,1744653058968,-500.0,0.00017889,2]
[358010338,1744653058978,-573.4,0.00017889,2]
[358010339,1744653058989,-500.0,0.00017889,2]
[358010340,1744653058999,-500.0,0.00017889,2]
[358010341,1744653059009,-500.0,0.00017889,2]
[358010342,1744653059020,-500.0,0.00017889,2]
[358010343,1744653059030,-683.12,0.00017889,2]
[358010344,1744653059040,-500.0,0.00017889,2]
[358010345,1744653059051,-500.0,0.00017889,2]
[358010346,1744653059061,-150.71340923,0.00017889,2]
[358010347,1744653059071,-225.67,0.00017889,2]
[358010348,1744653059081,-500.0,0.00017889,2]
[358010349,1744653059091,-500.0,0.00017889,2]
[358010350,1744653059101,-740.09,0.00017889,2]
[358010351,1744653059111,-531.16,0.00017889,2]
[358010352,1744653059121,-500.0,0.00017889,2]
[358010353,1744653059131,-131774.01,0.00017889,2]
[358010354,1744653059142,-434.14527218,0.00017889,2]
[358010355,1744653059153,-557.25,0.00017889,2]
[358010356,1744653059163,-151.0,0.0001789,2]
[358010357,1744653059172,-151.0,0.0001789,2]
[358010358,1744653059183,-186.289846,0.0001789,2]
[358010359,1744653059193,-186.289846,0.0001789,2]
[358010360,1744653059203,-500.0,0.0001789,2]
[358010361,1744653059213,-500.0,0.0001789,2]
[358010362,1744653059223,-155.65273,0.0001789,2]
[358010363,1744653059233,-151.0,0.0001789,2]
[358010364,1744653059243,-177.416713,0.0001789,2]
[358010365,1744653059253,-177.416713,0.0001789,2]
[358010366,1744653059263,-151.0,0.0001789,2]
[358010367,1744653059273,-151.0,0.0001789,2]
[358010368,1744653059284,-151.0,0.0001789,2]
[358010369,1744653059294,-151.0,0.0001789,2]
[358010370,1744653059304,-500.0,0.0001789,2]
[358010371,1744653059316,-151.0,0.0001789,2]
[358010372,1744653059326,-500.0,0.0001789,2]
[358010373,1744653059335,-500.0,0.0001789,2]
[358010374,1744653059346,-510.79594627,0.0001789,2]
[358010375,1744653059356,-500.0,0.0001789,2]
[358010376,1744653059366,-500.0,0.0001789,2]
[358010377,1744653059377,-500.0,0.0001789,2]
[358010378,1744653059390,-311.9086471,0.0001789,2]
[358010379,1744653059401,-500.0,0.0001789,2]
[358010380,1744653059412,-500.0,0.0001789,2]
[358010381,1744653059422,-500.0,0.0001789,2]
[358010382,1744653059433,-500.0,0.0001789,2]
[358010383,1744653059443,-500.0,0.0001789,2]
[358010384,1744653059454,-500.0,0.0001789,2]
[358010385,1744653059464,-500.0,0.0001789,2]
[358010386,1744653059474,-500.0,0.0001789,2]
[358010387,1744653059486,-403.97838849,0.0001789,2]
[358010388,1744653059496,-500.0,0.0001789,2]
[358010389,1744653059507,-500.0,0.0001789,2]
[358010390,1744653059518,-500.0,0.0001789,2]
[358010391,1744653059528,-500.0,0.0001789,2]
[358010392,1744653059538,-500.0,0.0001789,2]
[358010393,1744653059548,-666.17,0.0001789,2]
[358010394,1744653059559,-561.88,0.0001789,2]
[358010395,1744653059570,-500.0,0.0001789,2]
[358010396,1744653059581,-500.0,0.0001789,2]
[358010397,1744653059591,-500.0,0.0001789,2]
[358010398,1744653059602,-500.0,0.0001789,2]
[358010399,1744653059613,-500.0,0.0001789,2]
[358010400,1744653059625,-721.12,0.0001789,2]
[358010401,1744653059639,-561.99,0.0001789,2]
[358010402,1744653059652,-500.0,0.0001789,2]
[358010403,1744653059663,-373.53032778,0.0001789,2]
[358010404,1744653059675,-500.0,0.0001789,2]
[358010405,1744653059686,-500.0,0.0001789,2]
[358010406,1744653059697,-500.0,0.0001789,2]
[358010407,1744653059708,-343.99231677,0.0001789,2]
[358010408,1744653059718,-473.47817987,0.0001789,2]
[358010409,1744653059728,-500.0,0.00017891,2]
[358010410,1744653059739,-500.0,0.00017897,2]
[358010411,1744653059749,-500.0,0.00017897,2]
[358010412,1744653059759,-500.0,0.00017897,2]
[358010413,1744653059770,-547.34,0.00017897,2]
[358010414,1744653059780,-500.0,0.00017897,2]
[358010415,1744653059790,-500.0,0.00017897,2]
[358010416,1744653059803,-500.0,0.00017897,2]
[358010417,1744653059814,-500.0,0.00017897,2]
[358010418,1744653059824,-2169.37,0.00017897,2]
[358010419,1744653059835,-500.0,0.00017897,2]
[358010420,1744653059847,-500.0,0.00017897,2]
[358010421,1744653059856,-2712.37,0.00017897,2]
[358010422,1744653059867,-1330.99,0.00017897,2]
[358010423,1744653059878,-1111.38,0.00017897,2]
[358010424,1744653059892,-151.0,0.00017897,2]
[358010425,1744653059902,-5699.61,0.00017897,2]
[358010426,1744653059912,-516.01,0.00017897,2]
[358010427,1744653059923,-500.0,0.00017897,2]
[358010428,1744653059932,-500.0,0.00017897,2]
[358010429,1744653059942,-1515.98,0.00017897,2]
[358010430,1744653059952,-223.45101,0.00017897,2]
[358010431,1744653059962,-223.45101,0.00017897,2]
[358010432,1744653059971,-648.18,0.00017897,2]
[358010433,1744653059981,-500.0,0.00017897,2]
[358010434,1744653059991,-500.0,0.00017897,2]
[358010435,1744653060001,-559.19,0.00017897,2]
[358010436,1744653060011,-500.0,0.00017897,2]
[358010437,1744653060021,-1808.63,0.00017897,2]
[358010438,1744653060031,-367.547228,0.00017897,2]
[358010439,1744653060041,-367.547228,0.00017897,2]
[358010440,1744653060052,-257.41799227,0.00017897,2]
[358010441,1744653060062,-500.0,0.00017897,2]
[358010442,1744653060072,-151.0,0.00017897,2]
[358010443,1744653060083,-3347.06,0.00017897,2]
[358010444,1744653060092,-153.460576,0.00017898,2]
[358010445,1744653060102,-151.0,0.00017898,2]
[358010446,1744653060112,-151.0,0.00017898,2]
[358010447,1744653060121,-151.0,0.00017898,2]
[358010448,1744653060131,-151.0,0.00017898,2]
[358010449,1744653060145,-155.686213,0.00017898,2]
[358010450,1744653060155,-155.142517,0.00017898,2]
[358010451,1744653060164,-274.29855192,0.00017898,2]
[358010452,1744653060175,-8603.8624554,0.00017898,2]
[358010453,1744653060185,-920.63,0.00017899,2]
[358010454,1744653060195,-704.57,0.00017899,2]
[358010455,1744653060205,-2106.09166431,0.00017899,2]
[358010456,1744653060215,-150.66252204,0.00017899,2]
[358010457,1744653060226,-151.0,0.00017899,2]
[358010458,1744653060236,-12500.0,0.000179,2]
[358010459,1744653060246,-12500.0,0.000179,2]
[358010460,1744653060257,-4336.7027259,0.00017913,2]
[358010461,1744653060267,-500.0,0.00017918,2]
[358010462,1744653060278,-1455.09,0.0001797,2]
[358010463,1744653060288,-500.0,0.0001797,2]
[358010464,1744653060298,-500.0,0.0001797,2]
[358010465,1744653060308,-251.022528,0.00017971,2]
[358010466,1744653060318,-251.022528,0.00017971,2]
[358010467,1744653060328,-1190.39487,0.00017971,2]
[358010468,1744653060337,-1190.39487,0.00017971,2]
[358010469,1744653060347,-1030.307129,0.00017971,2]
[358010470,1744653060357,-1030.307129,0.00017971,2]
[358010471,1744653060367,-243.59103,0.00017971,2]
[358010472,1744653060377,-243.59103,0.00017971,2]
[358010473,1744653060391,-473.47817987,0.00017973,2]
[358010474,1744653060401,-538.77045901,0.00017973,2]
[358010475,1744653060411,-578.81599954,0.00017973,2]
[358010476,1744653060421,-501.22348866,0.00017973,2]
[358010477,1744653060431,-500.0,0.00017973,2]
[358010478,1744653060441,-500.0,0.00017973,2]
[358010479,1744653060450,-500.0,0.00017973,2]
[358010480,1744653060461,-501.75534864,0.00017973,2]
[358010481,1744653060471,-162.82690396,0.00017973,2]
[358010482,1744653060480,-500.0,0.00017973,2]
[358010483,1744653060490,-502.248758,0.00017973,2]
[358010484,1744653060500,-159.63337303,0.00017973,2]
[358010485,1744653060510,-159.63866716,0.00017973,2]
[358010486,1744653060520,-159.63644902,0.00017973,2]
[358010487,1744653060530,-500.0,0.00017973,2]
[358010488,1744653060540,-500.0,0.00017973,2]
[358010489,1744653060550,-246.67040996,0.00017973,2]
[358010490,1744653060560,-200.76998702,0.00017973,2]
[358010491,1744653060569,-500.0,0.00017973,2]
[358010492,1744653060579,-501.49922872,0.00017973,2]
[358010493,1744653060589,-500.0,0.00017973,2]
[358010494,1744653060599,-360.26739713,0.00017973,2]
[358010495,1744653060609,-500.0,0.00017973,2]
[358010496,1744653060619,-500.0,0.00017973,2]
[358010497,1744653060629,-324.48,0.00017973,2]
[358010498,1744653060641,-500.0,0.00017973,2]
[358010499,1744653060651,-500.0,0.00017973,2]
[358010500,1744653060845,-500.0,0.00017973,2]
[358010501,1744653060855,-597.44972999,0.00017973,2]
[358010502,1744653060865,-508.19,0.00017973,2]
[358010503,1744653060875,-561.88,0.00017973,2]
[358010504,1744653060886,-500.0,0.00017973,2]
[358010505,1744653060896,-500.0,0.00017973,2]
[358010506,1744653060905,-721.12,0.00017973,2]
[358010507,1744653060915,-500.0,0.00017973,2]
[358010508,1744653060925,-394.91,0.00017973,2]
[358010509,1744653060935,-500.0,0.00017973,2]
[358010510,1744653060945,-150.0,0.00017973,2]
[358010511,1744653060955,-500.0,0.00017973,2]
[358010512,1744653060966,-920.63,0.00017974,2]
[358010513,1744653060976,-704.57,0.00017974,2]
[358010514,1744653060986,-500.0,0.00017974,2]
[358010515,1744653060995,-500.0,0.00017974,2]
[358010516,1744653061004,-500.0,0.00017974,2]
[358010517,1744653061013,-500.0,0.00017974,2]
[358010518,1744653061022,-547.34,0.00017974,2]
[358010519,1744653061031,-500.0,0.00017974,2]
[358010520,1744653061040,-500.0,0.00017974,2]
[358010521,1744653061050,-500.0,0.00017974,2]
[358010522,1744653061059,-167.22661015,0.00017974,2]
[358010523,1744653061069,-500.0,0.00017974,2]
[358010524,1744653061078,-500.0,0.00017974,2]
[358010525,1744653061087,-500.0,0.00017974,2]
[358010526,1744653061097,-500.0,0.00017974,2]
[358010527,1744653061106,-506.78,0.00017974,2]
[358010528,1744653061115,-527.26,0.00017974,2]
[358010529,1744653061124,-500.0,0.00017974,2]
[358010530,1744653061136,-500.0,0.00017974,2]
[358010531,1744653061145,-500.0,0.00017974,2]
[358010532,1744653061155,-500.0,0.00017974,2]
[358010533,1744653061164,-500.0,0.00017974,2]
[358010534,1744653061174,-2169.37,0.00017974,2]
[358010535,1744653061183,-500.0,0.00017974,2]
[358010536,1744653061193,-2200.66,0.00017974,2]
[358010537,1744653061202,-500.0,0.00017974,2]
[358010538,1744653061212,-500.0,0.00017974,2]
[358010539,1744653061222,-317.44781796,0.00017974,2]
[358010540,1744653061231,-500.0,0.00017974,2]
[358010541,1744653061241,-2712.37,0.00017974,2]
[358010542,1744653061250,-500.0,0.00017974,2]
[358010543,1744653061259,-1330.99,0.00017974,2]
[358010544,1744653061268,-500.0,0.00017974,2]
[358010545,1744653061278,-500.0,0.00017974,2]
[358010546,1744653061287,-615.32,0.00017974,2]
[358010547,1744653061296,-666.17,0.00017974,2]
[358010548,1744653061306,-500.0,0.00017974,2]
[358010549,1744653061316,-500.0,0.00017974,2]
[358010550,1744653061326,-500.0,0.00017974,2]
[358010551,1744653061336,-573.4,0.00017974,2]
[358010552,1744653061347,-500.0,0.00017974,2]
[358010553,1744653061356,-1111.38,0.00017974,2]
[358010554,1744653061365,-500.0,0.00017974,2]
[358010555,1744653061375,-500.0,0.00017974,2]
[358010556,1744653061385,-5699.61,0.00017974,2]
[358010557,1744653061395,-190.55315689,0.00017974,2]
[358010558,1744653061405,-516.01,0.00017974,2]
[358010559,1744653061414,-500.0,0.00017974,2]
[358010560,1744653061424,-500.0,0.00017974,2]
[358010561,1744653061433,-683.12,0.00017974,2]
[358010562,1744653061443,-500.0,0.00017974,2]
[358010563,1744653061452,-1515.98,0.00017974,2]
[358010564,1744653061462,-648.18,0.00017974,2]
[358010565,1744653061471,-500.0,0.00017974,2]
[358010566,1744653061481,-500.0,0.00017974,2]
[358010567,1744653061491,-500.0,0.00017974,2]
[358010568,1744653061500,-559.19,0.00017974,2]
[358010569,1744653061510,-500.0,0.00017974,2]
[358010570,1744653061519,-500.0,0.00017974,2]
[358010571,1744653061529,-1808.63,0.00017974,2]
[358010572,1744653061538,-500.0,0.00017974,2]
[358010573,1744653061547,-740.09,0.00017974,2]
[358010574,1744653061557,-500.0,0.00017974,2]